bitfinex-derivatives/quotes_SOLF0:USTF0_20240908
["timestamp","ask_amount","ask_price","bid_price","bid_amount"]
[1725833706043,2.5777,129.23,129.11,3.84206955]
[1725833706044,3.91914332,129.21,129.11,3.84206955]
[1725833706342,21.04,129.17,129.09,24.74984799]
[1725833706545,20.84,129.15,129.07,23.939]
[1725833706758,0.2,129.17,129.09,20.84]
[1725833707045,0.2,129.17,129.09,27.42644153]
[1725833707244,3.0973,129.16,129.1,3.0984]
[1725833707444,0.2,129.17,129.1,20.84]
[1725833707647,0.2,129.17,129.16,20.84]
[1725833707948,0.2,129.17,129.16,24.71365403]
[1725833709238,3.0956,129.22,129.16,27.81065403]
[1725833709445,0.2,129.24,129.16,24.71365403]
[1725833709750,3.0956,129.23,129.18,20.84]
[1725833710346,3.0957,129.22,129.18,20.84]
[1725833710548,21.04,129.24,129.16,24.66445863]
[1725833710859,3.0963,129.2,129.15,1.3778]
[1725833711146,20.84,129.23,129.15,1.3778]
[1725833711350,22.1777,129.23,129.14,23.5592]
[1725833711737,20.84,129.21,129.14,2.7192]
[1725833711940,20.84,129.19,129.11,20.84]
[1725833712143,20.84,129.18,129.1,20.84]
[1725833712446,20.84,129.19,129.11,20.84]
[1725833712949,3.0972,129.16,129.11,20.84]
[1725833713150,20.84,129.19,129.11,20.84]
[1725833713553,3.0976,129.14,129.1,20.84]
[1725833714846,1.3852,129.19,129.11,20.84]
[1725833715241,1.3852,129.19,129.11,23.938]
[1725833716454,20.84,129.18,129.11,23.938]
[1725833717045,3.0973,129.16,129.11,23.938]
[1725833717250,20.84,129.18,129.11,23.938]
[1725833717251,24.71421578,129.18,129.11,23.938]
[1725833717455,20.84,129.17,129.1,1.3702]
[1725833717650,3.0978,129.13,129.1,1.3702]
[1725833718752,1.3852,129.19,129.1,22.2102]
[1725833718753,3.0975,129.15,129.1,22.2102]
[1725833719054,3.96870885,129.18,129.11,20.84]
[1725833719356,22.2236,129.2,129.13,20.84]
[1725833719551,3.097,129.17,129.13,20.84]
[1725833721454,3.097,129.17,129.13,23.9377]
[1725833721755,3.0971,129.16,129.13,20.84]
[1725833721960,20.84,129.22,129.13,20.84]
[1725833722155,3.0969,129.17,129.13,20.84]
[1725833722652,3.0965,129.19,129.15,20.84]
[1725833722847,4.1031,129.23,129.15,20.84]
[1725833723047,0.28464047,129.22,129.15,20.84]
[1725833723250,3.0963,129.2,129.15,23.9371]
[1725833724146,3.0963,129.2,129.15,27.82194473]
[1725833724954,3.0963,129.2,129.16,3.097]
[1725833725755,3.0964,129.19,129.15,27.82204473]
[1725833727964,3.0962,129.2,129.16,3.097]
[1725833728263,0.2,129.24,129.16,20.84]
[1725833728472,0.28461576,129.23,129.17,2.6947]
[1725833728963,3.096,129.21,129.17,2.6947]
[1725833729148,0.2,129.24,129.17,2.6947]
[1725833729352,0.28461575,129.23,129.17,2.6947]
[1725833729969,0.28461575,129.23,129.17,5.7914]
[1725833730162,0.2,129.24,129.17,2.6947]
[1725833730463,0.2,129.24,129.18,20.84]
[1725833730655,3.0958,129.22,129.18,23.9364]
[1725833734966,3.0954,129.23,129.2,20.84]
[1725833736862,3.2952,129.24,129.2,23.936]
[1725833737064,3.2952,129.24,129.21,20.84]
[1725833737768,0.2,129.24,129.23,20.84]
[1725833737955,0.2,129.24,129.23,24.72643907]
[1725833738158,0.2,129.3,129.23,24.72643907]
[1725833738357,0.2,129.3,129.26,20.84]
[1725833739065,3.094,129.29,129.26,20.84]
[1725833739277,0.2,129.3,129.26,20.84]
[1725833739567,0.2,129.3,129.24,20.84]
[1725833739773,0.2,129.3,129.23,3.82721346]
[1725833740273,3.0946,129.27,129.23,3.82721346]
[1725833740983,3.0947,129.26,129.22,2.6484]
[1725833741359,3.0947,129.26,129.22,6.49464313]
[1725833741655,3.0945,129.27,129.22,9.59014313]
[1725833742064,0.2,129.3,129.23,20.84]
[1725833742567,0.2,129.3,129.25,20.84]
[1725833743374,3.0939,129.29,129.25,23.9348]
[1725833745065,3.0939,129.29,129.27,20.84]
[1725833745879,3.2937,129.3,129.27,20.84]
[1725833746065,3.2937,129.3,129.27,22.198]
[1725833746876,0.2,129.3,129.27,22.198]
[1725833747172,3.094,129.29,129.27,22.198]
[1725833747378,0.2,129.3,129.27,22.198]
[1725833747578,3.2938,129.3,129.27,22.198]
[1725833747779,0.2,129.3,129.27,1.358]
[1725833747979,0.2,129.3,129.23,23.4411]
[1725833748880,0.2,129.3,129.25,23.9348]
[1725833749977,3.0941,129.29,129.25,23.9348]
[1725833750173,0.2,129.3,129.26,20.84]
[1725833751272,0.2,129.3,129.28,20.84]
[1725833753174,0.2,129.3,129.28,22.1545]
[1725833753476,0.2,129.3,129.28,25.2487]
[1725833753676,0.2,129.3,129.28,26.6147]
[1725833753874,1.3777,129.42,129.28,26.6147]
[1725833753875,3.289,129.5,129.29,51.87]
[1725833754073,3.289,129.5,129.44,20.84]
[1725833754280,3.289,129.5,129.35,119.95502669]
[1725833754281,4.03945841,129.5,129.35,119.95502669]
[1725833754484,4.03945841,129.5,129.43,20.84]
[1725833754669,4.03945841,129.5,129.45,3.0901]
[1725833754670,0.2,129.5,129.45,3.0901]
[1725833754874,0.2,129.5,129.43,20.84]
[1725833755077,0.2,129.5,129.42,20.84]
[1725833755078,3.0894,129.49,129.42,20.84]
[1725833756188,0.2,129.5,129.42,25.95]
[1725833756189,3.2889,129.5,129.42,25.95]
[1725833756386,0.2,129.5,129.44,25.95]
[1725833756990,0.2,129.5,129.46,3.0898]
[1725833757188,0.2,129.5,129.45,25.95]
[1725833757387,0.2,129.5,129.47,3.0894]
[1725833757884,0.2,129.5,129.45,25.95]
[1725833758578,0.2,129.5,129.47,3.0895]
[1725833759092,0.2,129.5,129.46,3.0897]
[1725833759383,0.2,129.5,129.45,28.6655]
[1725833760278,0.2,129.5,129.45,2.7155]
[1725833761483,0.2,129.5,129.48,25.95]
[1725833761884,0.2,129.5,129.48,29.0392]
[1725833762487,0.2,129.5,129.49,3.0891]
[1725833762689,3.0878,129.55,129.49,25.95]
[1725833762903,0.2,129.56,129.51,25.95]
[1725833763091,0.2,129.56,129.52,3.8471327]
[1725833763892,0.2,129.56,129.51,25.95]
[1725833764379,0.2,129.56,129.51,29.88597211]
[1725833764780,25.95,129.55,129.45,1.3647]
[1725833764987,3.0884,129.52,129.45,27.3147]
[1725833765282,1.2823,129.54,129.45,27.3147]
[1725833765482,5.13677161,129.54,129.45,27.3147]
[1725833766196,3.089,129.5,129.45,27.3147]
[1725833766385,5.13677161,129.54,129.45,27.3147]
[1725833766693,25.95,129.53,129.45,1.3647]
[1725833766891,5.13677161,129.54,129.45,1.3647]
[1725833766892,5.13677161,129.54,129.45,27.3147]
[1725833767287,3.0877,129.55,129.47,25.95]
[1725833767590,0.2,129.56,129.51,25.95]
[1725833767794,0.2,129.56,129.51,32.91005418]
[1725833768189,0.2,129.56,129.51,29.82155418]
[1725833768395,3.2875,129.56,129.51,29.82155418]
[1725833768894,0.2,129.56,129.53,25.95]
[1725833769390,0.2,129.56,129.51,29.80809114]
[1725833771394,0.2,129.56,129.52,1.3864]
[1725833772283,0.2,129.56,129.53,3.0882]
[1725833777102,0.2,129.63,129.55,25.95]
[1725833778513,0.2,129.63,129.57,25.95]
[1725833778692,0.2,129.63,129.56,1.2741]
[1725833778888,3.0863,129.61,129.56,1.2741]
[1725833779099,0.2,129.63,129.6,25.95]
[1725833779605,0.2,129.63,129.6,29.83091595]
[1725833779792,0.2,129.69,129.62,25.95]
[1725833780190,0.2,129.69,129.63,25.95]
[1725833780392,0.2,129.69,129.65,25.95]
[1725833780905,0.2,129.69,129.64,4.3595]
[1725833781204,0.2,129.69,129.65,3.0853]
[1725833781599,0.2,129.69,129.65,25.95]
[1725833781797,1.33,129.75,129.66,3.0849]
[1725833781798,3.0834,129.73,129.66,3.0849]
[1725833782000,3.0834,129.73,129.65,25.95]
[1725833782204,1.33,129.75,129.67,29.0346]
[1725833782398,28.8236,129.76,129.66,25.95]
[1725833782399,26.15,129.76,129.66,25.95]
[1725833782791,26.15,129.76,129.67,3.0846]
[1725833783100,0.2,129.76,129.68,25.95]
[1725833783292,3.0833,129.74,129.68,25.95]
[1725833783489,0.2,129.76,129.68,25.95]
[1725833784305,3.0831,129.75,129.68,29.0346]
[1725833784693,0.2,129.76,129.68,29.0346]
[1725833784899,25.95,129.75,129.65,1.3627]
[1725833785403,25.95,129.75,129.65,27.3127]
[1725833785907,3.0835,129.73,129.67,29.0348]
[1725833786302,25.95,129.75,129.65,27.3127]
[1725833786700,3.0838,129.72,129.65,27.3127]
[1725833787012,0.2,129.76,129.67,25.95]
[1725833787407,3.0835,129.73,129.67,25.95]
[1725833787813,0.2,129.76,129.69,25.95]
[1725833788000,0.2,129.76,129.69,29.0344]
[1725833788205,0.2,129.76,129.69,25.95]
[1725833788403,0.2,129.76,129.67,25.95]
[1725833789309,3.0835,129.73,129.68,3.0846]
[1725833789614,0.2,129.76,129.67,25.95]
[1725833790204,3.0834,129.74,129.69,3.0843]
[1725833790412,0.2,129.76,129.67,25.95]
[1725833790804,0.2,129.76,129.68,1.404]
[1725833791419,0.2,129.76,129.69,25.95]
[1725833791909,0.2,129.76,129.71,25.95]
[1725833792105,0.2,129.76,129.72,2.719]
[1725833793109,3.2829,129.76,129.72,2.719]
[1725833793300,3.2829,129.76,129.73,25.95]
[1725833793301,0.2,129.76,129.73,25.95]
[1725833794413,0.2,129.82,129.75,25.95]
[1725833795114,3.2815,129.82,129.77,25.95]
[1725833795315,3.2815,129.82,129.79,25.95]
[1725833795316,0.2,129.82,129.79,25.95]
[1725833796021,0.2,129.82,129.75,25.95]
[1725833796204,0.2,129.82,129.72,28.669]
[1725833796205,26.15,129.82,129.72,28.669]
[1725833796614,0.2,129.82,129.74,25.95]
[1725833797010,0.2,129.82,129.73,25.95]
[1725833797803,3.0821,129.79,129.73,29.0332]
[1725833798007,0.2,129.82,129.73,29.0332]
[1725833798216,0.2,129.82,129.73,25.95]
[1725833798419,3.0819,129.8,129.74,3.0832]
[1725833798616,25.95,129.79,129.72,2.719]
[1725833799203,25.95,129.79,129.49,8.44682419]
[1725833799204,25.95,129.77,129.49,8.44682419]
[1725833799404,25.95,129.75,129.66,1.3412]
[1725833799910,25.95,129.73,129.62,29.036]
[1725833800213,25.95,129.71,129.62,3.9001973]
[1725833800414,1.2792,129.7,129.6,27.2912]
[1725833800623,1.2792,129.7,129.62,25.95]
[1725833801008,1.2792,129.7,129.62,29.80250277]
[1725833801307,1.3535,129.73,129.64,25.95]
[1725833801622,3.0844,129.69,129.63,3.0858]
[1725833801812,25.95,129.72,129.62,25.95]
[1725833802124,25.95,129.72,129.6,27.2912]
[1725833802419,3.0844,129.69,129.62,3.086]
[1725833802616,25.95,129.72,129.62,6.88102576]
[1725833802921,3.0844,129.69,129.63,3.0858]
[1725833803420,3.0851,129.67,129.61,3.0861]
[1725833803719,3.0851,129.67,129.6,31.16761938]
[1725833803917,3.0847,129.68,129.62,3.086]
[1725833804120,3.0847,129.68,129.63,25.95]
[1725833804514,3.0847,129.68,129.63,29.0358]
[1725833804919,2.6327,129.73,129.63,25.95]
[1725833805110,2.6327,129.73,129.63,29.0358]
[1725833805414,3.084,129.71,129.63,25.95]
[1725833805621,2.6327,129.73,129.65,3.0853]
[1725833805813,2.6327,129.73,129.64,1.4004]
[1725833806019,3.0846,129.69,129.64,1.4004]
[1725833806216,2.6327,129.73,129.64,4.486]
[1725833807227,1.2792,129.73,129.65,25.95]
[1725833807607,3.0843,129.7,129.65,29.0353]
[1725833808225,1.2792,129.73,129.65,25.95]
[1725833809727,3.084,129.71,129.66,3.0849]
[1725833810317,1.2792,129.73,129.65,25.95]
[1725833810318,1.2792,129.73,129.65,29.0353]
[1725833810617,1.2792,129.73,129.65,25.95]
[1725833811311,3.0845,129.69,129.65,25.95]
[1725833811511,1.2792,129.73,129.65,25.95]
[1725833811712,1.2792,129.73,129.64,1.4004]
[1725833811909,1.2792,129.73,129.66,3.0849]
[1725833812124,1.2792,129.73,129.64,27.3504]
[1725833812727,3.0841,129.71,129.64,27.3504]
[1725833813422,3.0841,129.71,129.66,3.0849]
[1725833814220,3.0838,129.72,129.67,29.0348]
[1725833814726,3.0838,129.72,129.67,29.8818292]
[1725833814926,3.0835,129.73,129.68,3.0846]
[1725833815116,3.0835,129.73,129.68,30.4411]
[1725833815722,23.27,129.83,129.68,1.4065]
[1725833815723,26.15,129.82,129.68,1.4065]
[1725833815923,2.98241099,129.81,129.72,25.95]
[1725833816114,0.28341099,129.8,129.72,25.95]
[1725833816315,2.699,129.81,129.72,25.95]
[1725833816824,2.699,129.81,129.73,3.0834]
[1725833817020,2.699,129.81,129.72,25.95]
[1725833817525,3.0824,129.78,129.72,25.95]
[1725833817722,3.0824,129.78,129.73,3.0833]
[1725833818322,3.0826,129.77,129.72,29.0336]
[1725833818523,3.0826,129.77,129.72,25.95]
[1725833818716,2.699,129.81,129.72,25.95]
[1725833819118,3.0824,129.78,129.73,3.0834]
[1725833819322,1.3402,129.81,129.72,25.95]
[1725833819531,25.95,129.8,129.69,25.95]
[1725833819731,25.95,129.8,129.68,1.4065]
[1725833819732,25.95,129.78,129.68,1.4065]
[1725833819912,25.95,129.75,129.65,27.2255]
[1725833820313,25.95,129.75,129.66,3.085]
[1725833820516,3.76502339,129.76,129.63,25.95]
[1725833820517,25.95,129.72,129.63,25.95]
[1725833820718,25.95,129.72,129.61,1.345]
[1725833820920,3.0847,129.68,129.61,1.345]
[1725833821327,3.0847,129.68,129.63,3.0857]
[1725833821515,3.80002521,129.73,129.6,29.82641938]
[1725833821516,3.0852,129.66,129.6,29.82641938]
[1725833821718,25.95,129.7,129.6,29.82641938]
[1725833821918,3.0853,129.66,129.61,3.0861]
[1725833822531,3.0853,129.66,129.6,29.82641938]
[1725833822532,3.0849,129.67,129.62,3.0859]
[1725833822831,2.5919,129.74,129.6,29.82641938]
[1725833823026,32.44835985,129.74,129.64,25.95]
[1725833823231,0.28352206,129.73,129.64,29.0354]
[1725833823428,25.95,129.72,129.62,25.95]
[1725833823631,25.95,129.72,129.6,29.82641938]
[1725833823632,25.95,129.7,129.6,29.82641938]
[1725833823931,25.95,129.7,129.61,3.0861]
[1725833824137,29.62451884,129.74,129.58,25.95]
[1725833824138,25.95,129.69,129.58,25.95]
[1725833824336,1.2863,129.68,129.58,25.95]
[1725833824727,25.95,129.67,129.57,25.95]
[1725833824929,28.6459,129.67,129.57,25.95]
[1725833825230,3.0856,129.64,129.58,3.0868]
[1725833825529,32.47410041,129.67,129.57,25.95]
[1725833825731,28.6459,129.67,129.57,25.95]
[1725833826334,32.58519692,129.67,129.57,25.95]
[1725833826630,49.22,129.64,129.53,25.95]
[1725833826822,25.95,129.61,129.51,172.43532685]
[1725833827233,1.3717,129.6,129.51,172.43532685]
[1725833827529,3.0873,129.57,129.52,3.0883]
[1725833827736,3.0873,129.57,129.51,172.43532685]
[1725833828119,3.0871,129.58,129.53,3.0882]
[1725833828634,2.7029,129.6,129.54,3.2879]
[1725833828635,3.0868,129.59,129.54,3.2879]
[1725833829227,3.0871,129.58,129.54,3.2879]
[1725833829425,3.0871,129.58,129.54,0.2]
[1725833829831,25.95,129.59,129.54,0.2]
[1725833830229,27.2433,129.59,129.54,0.2]
[1725833830836,4.3802,129.59,129.54,0.2]
[1725833831051,4.3802,129.59,129.54,3.2879]
[1725833831335,1.2933,129.59,129.54,0.2]
[1725833831542,3.087,129.58,129.54,0.2]
[1725833831743,1.2933,129.59,129.54,0.2]
[1725833832124,3.087,129.59,129.55,3.0876]
[1725833832837,5.7895,129.6,129.55,3.0876]
[1725833833026,1.2933,129.65,129.54,0.2]
[1725833833027,27.2433,129.65,129.54,26.15]
[1725833833227,0.28373581,129.64,129.54,26.15]
[1725833833428,25.95,129.63,129.54,26.15]
[1725833833627,3.0867,129.6,129.55,3.0876]
[1725833834724,3.906,129.65,129.56,25.95]
[1725833835140,3.0859,129.63,129.58,3.0868]
[1725833835445,2.28006931,129.63,129.58,3.0868]
[1725833835631,1.0,129.66,129.58,25.95]
[1725833835934,4.0162,129.69,129.62,25.95]
[1725833836135,1.3624,129.72,129.62,25.95]
[1725833836337,1.3624,129.72,129.63,1.3133]
[1725833836641,2.6538,129.73,129.65,25.95]
[1725833836940,3.0841,129.71,129.65,29.0353]
[1725833837544,3.0841,129.71,129.65,25.95]
[1725833837739,3.0841,129.71,129.65,29.0353]
[1725833837944,3.0842,129.7,129.65,29.0353]
[1725833838241,2.6538,129.73,129.65,29.0353]
[1725833838425,2.6538,129.73,129.66,3.085]
[1725833838629,2.6538,129.73,129.66,25.95]
[1725833838630,3.0837,129.72,129.66,25.95]
[1725833839247,4.3807,129.73,129.67,3.0847]
[1725833839448,1.309,129.77,129.68,25.95]
[1725833839630,25.95,129.81,129.65,25.95]
[1725833839831,0.2,129.82,129.73,25.95]
[1725833839832,0.28338402,129.8,129.73,25.95]
[1725833840033,26.15,129.82,129.73,25.95]
[1725833840230,0.28336529,129.81,129.73,25.95]
[1725833840435,25.95,129.78,129.65,25.95]
[1725833840641,25.95,129.78,129.67,25.95]
[1725833840838,0.2,129.82,129.73,25.95]
[1725833841033,26.23333406,129.81,129.71,25.95]
[1725833841239,25.95,129.81,129.71,29.81635405]
[1725833841534,3.0822,129.78,129.71,25.95]
[1725833841739,3.0822,129.78,129.72,3.919957]
[1725833841937,0.2,129.82,129.73,25.95]
[1725833842138,0.28334816,129.81,129.73,25.95]
[1725833842337,26.23334816,129.81,129.71,25.95]
[1725833842541,25.95,129.79,129.69,25.95]
[1725833842843,3.0825,129.78,129.69,25.95]
[1725833843141,25.95,129.81,129.71,25.95]
[1725833843340,25.95,129.81,129.65,25.95]
[1725833843341,0.2,129.82,129.73,25.95]
[1725833843535,0.2,129.82,129.75,25.95]
[1725833843747,0.2,129.82,129.77,25.95]
[1725833844046,3.2814,129.82,129.77,29.0323]
[1725833844238,0.2,129.82,129.78,25.95]
[1725833844430,0.2,129.89,129.81,25.95]
[1725833844636,0.28323376,129.88,129.82,25.95]
[1725833844942,0.2,129.89,129.86,25.95]
[1725833845462,5.22537367,129.97,129.88,25.95]
[1725833845463,1.2889,129.97,129.88,25.95]
[1725833845741,226.0,129.98,129.91,25.95]
[1725833845939,2.5769,130.0,129.91,25.95]
[1725833846145,25.95,129.97,129.87,25.95]
[1725833847145,2.5769,130.0,129.87,25.95]
[1725833847446,25.95,129.97,129.87,25.95]
[1725833848035,25.95,129.97,129.85,25.95]
[1725833848036,3.079,129.92,129.85,25.95]
[1725833848243,31.03,129.93,129.82,31.03]
[1725833848648,0.28311686,129.92,129.82,31.03]
[1725833848846,3.0797,129.89,129.82,31.03]
[1725833849347,31.03,129.91,129.8,31.03]
[1725833849543,3.0796,129.9,129.8,34.1118]
[1725833849739,31.03,129.93,129.82,31.03]
[1725833849934,31.03,129.91,129.81,1.3863]
[1725833850346,3.0808,129.85,129.78,171.60338562]
[1725833850542,31.03,129.89,129.78,167.67385051]
[1725833850741,3.0803,129.87,129.8,31.03]
[1725833851053,1.0,129.92,129.82,31.03]
[1725833851545,1.0,129.92,129.83,1.3172]
[1725833851747,1.0,129.92,129.83,5.15982733]
[1725833852448,1.0,129.92,129.84,31.03]
[1725833852645,0.2,129.95,129.86,31.03]
[1725833852954,3.0787,129.93,129.86,31.03]
[1725833853138,0.2,129.95,129.86,31.03]
[1725833853348,0.2,129.95,129.84,32.3166]
[1725833853641,3.0797,129.89,129.84,32.3166]
[1725833853843,31.03,129.92,129.84,1.2866]
[1725833854043,31.03,129.9,129.83,1.3172]
[1725833854563,31.03,129.88,129.79,1.3615]
[1725833855048,3.0808,129.84,129.79,1.3615]
[1725833855448,31.03,129.88,129.79,1.3615]
[1725833855642,3.0806,129.86,129.79,4.4435]
[1725833856238,31.03,129.88,129.79,1.3615]
[1725833856543,31.03,129.86,129.79,1.3615]
[1725833856747,3.0811,129.83,129.79,1.3615]
[1725833857151,31.03,129.86,129.79,1.3615]
[1725833857347,3.0808,129.84,129.79,1.3615]
[1725833857753,31.03,129.86,129.79,1.3615]
[1725833857949,3.082,129.8,129.78,136.64385051]
[1725833858254,31.03,129.84,129.74,32.4317]
[1725833858576,31.03,129.82,129.74,1.4017]
[1725833858855,1.3929,129.83,129.72,32.4083]
[1725833859055,3.0815,129.82,129.74,31.03]
[1725833859250,31.03,129.86,129.76,31.03]
[1725833859846,3.0814,129.82,129.76,31.03]
[1725833860365,31.03,129.86,129.74,31.03]
[1725833860651,31.03,129.84,129.74,31.03]
[1725833860858,3.0813,129.82,129.76,3.0825]
[1725833861046,1.3929,129.87,129.78,31.03]
[1725833861249,1.3125,129.88,129.78,34.81671086]
[1725833861449,1.3808,129.9,129.8,31.03]
[1725833861658,1.3808,129.9,129.81,1.387]
[1725833861846,1.3808,129.9,129.8,31.03]
[1725833862046,1.3808,129.9,129.78,31.03]
[1725833862360,31.03,129.89,129.78,31.03]
[1725833862764,31.03,129.86,129.74,1.387]
[1725833863065,31.03,129.84,129.74,1.387]
[1725833863247,1.3481,129.85,129.74,1.387]
[1725833863653,1.3481,129.85,129.75,31.03]
[1725833863856,3.0816,129.81,129.75,31.03]
[1725833864159,1.3481,129.85,129.74,1.387]
[1725833864160,32.3764,129.84,129.74,1.387]
[1725833864753,1.3464,129.84,129.75,31.03]
[1725833864953,1.3481,129.85,129.75,31.03]
[1725833865170,3.0808,129.84,129.78,3.0822]
[1725833865862,32.4108,129.9,129.79,31.03]
[1725833866161,32.4108,129.9,129.79,32.3508]
[1725833866657,32.4108,129.9,129.8,3.8513407]
[1725833867062,1.3808,129.9,129.81,36.14370657]
[1725833867258,1.3808,129.9,129.81,32.302]
[1725833867462,31.23,129.95,129.84,31.03]
[1725833867649,1.3485,129.94,129.84,31.03]
[1725833868563,1.3485,129.94,129.81,5.13104801]
[1725833868564,1.3485,129.94,129.86,31.03]
[1725833868756,1.3485,129.94,129.84,31.03]
[1725833869156,3.0792,129.91,129.86,3.0803]
[1725833869461,31.03,129.91,129.81,1.272]
[1725833869848,31.03,129.89,129.81,1.272]
[1725833870157,31.03,129.91,129.8,185.86368809]
[1725833870352,31.03,129.91,129.8,187.17408809]
[1725833871362,31.03,129.93,129.82,31.03]
[1725833871564,1.3485,129.94,129.84,31.03]
[1725833872264,1.3485,129.94,129.86,31.03]
[1725833872671,1.3485,129.94,129.84,31.03]
[1725833873157,0.2,129.95,129.86,31.03]
[1725833873461,0.2,129.95,129.86,34.83506315]
[1725833873665,0.2,129.95,129.88,31.03]
[1725833873854,0.2,129.95,129.87,2.6392]
[1725833874056,0.2,129.95,129.84,31.03]
[1725833874057,31.23,129.95,129.84,31.03]
[1725833874257,31.03,129.93,129.85,3.0805]
[1725833874563,31.03,129.93,129.81,33.6692]
[1725833874866,31.03,129.91,129.81,2.6392]
[1725833875066,31.03,129.89,129.79,31.03]
[1725833875460,31.03,129.89,129.79,34.90130514]
[1725833875771,31.03,129.89,129.81,3.0815]
[1725833876083,31.03,129.89,129.8,3.9329256]
[1725833876270,32.3533,129.91,129.81,31.03]
[1725833876469,3.0794,129.9,129.82,2.7701]
[1725833876660,32.3533,129.91,129.82,2.7701]
[1725833877175,3.0794,129.9,129.82,2.7701]
[1725833877361,1.3233,129.91,129.82,2.7701]
[1725833877675,32.3533,129.91,129.82,2.7701]
[1725833878559,2.7338,129.92,129.82,2.7701]
[1725833878772,31.03,129.91,129.82,2.7701]
[1725833878974,3.0799,129.88,129.82,5.8512]
[1725833879268,31.03,129.91,129.82,2.7701]
[1725833879469,1.3788,129.94,129.83,31.03]
[1725833879771,1.3788,129.94,129.83,32.4075]
[1725833880163,3.0792,129.91,129.83,32.4075]
[1725833880569,1.3788,129.94,129.83,32.4075]
[1725833880768,3.0792,129.91,129.85,3.0804]
[1725833880974,1.3788,129.94,129.83,32.4075]
[1725833880975,31.03,129.93,129.83,32.4075]
[1725833881173,54.3,129.93,129.83,1.3775]
[1725833881374,31.03,129.89,129.82,1.3829]
[1725833881669,1.3255,129.88,129.78,3.76240931]
[1725833881870,1.3255,129.88,129.79,31.03]
[1725833882174,1.3255,129.88,129.8,3.93724389]
[1725833882375,31.03,129.91,129.79,31.03]
[1725833882669,31.03,129.91,129.79,34.87905641]
[1725833882670,54.3,129.91,129.79,34.87905641]
[1725833882875,31.03,129.91,129.79,34.87905641]
[1725833883076,31.03,129.91,129.81,31.03]
[1725833883472,31.03,129.91,129.84,3.0808]
[1725833883881,32.3555,129.93,129.82,3.79090658]
[1725833884075,25.87,129.92,129.82,25.87]
[1725833884267,25.87,129.92,129.83,3.88872152]
[1725833884497,25.87,129.92,129.82,25.87]
[1725833884675,25.87,129.9,129.8,25.87]
[1725833884872,25.87,129.92,129.77,4.1463]
[1725833884873,25.87,129.88,129.78,25.87]
[1725833885277,3.8165293,129.9,129.77,30.0163]
[1725833885478,25.87,129.86,129.78,3.81460371]
[1725833885773,25.87,129.84,129.77,2.7528]
[1725833885972,3.0815,129.81,129.77,5.8353]
[1725833886186,1.3614,129.85,129.77,1.351]